fUSD/lending_fUSD_20240802
["ID","MTS","AMOUNT","RATE_DAILY","PERIOD"]
[333899164,1722612634430,-456.38871069,0.00010989,2]
[333899165,1722612634441,-153.19,0.0001099,2]
[333899166,1722612634451,-638.83320075,0.00010997,2]
[333899167,1722612634461,-1030.49844899,0.00010998,2]
[333899168,1722612634471,-49227.28872809,0.00011,2]
[333899169,1722612634504,-618.80058225,0.00011,2]
[333899170,1722612634516,-1258.3,0.00011,2]
[333899171,1722612634529,-825.77885809,0.00011,2]
[333899172,1722612634541,-309.4205058,0.00011,2]
[333899173,1722612634553,-118489.65687109,0.00011,2]
[333899176,1722612634566,-553.0,0.00011,2]
[333899185,1722612638891,-6276.27,0.00011,2]
[333899186,1722612638905,-337.41241229,0.00011,2]
[333899188,1722612638918,-5377.27717819,0.00011,2]
[333899190,1722612638930,-9896.10167872,0.00011,2]
[333899192,1722612638942,-11128.03155935,0.00011,2]
[333899194,1722612638955,-6269.52412011,0.00011,2]
[333899196,1722612638984,-2471.77033311,0.00011,2]
[333899198,1722612638996,-12520.0,0.00011,2]
[333899200,1722612639008,-579.54661611,0.00011,2]
[333899202,1722612639021,-60668.48599993,0.00011,2]
[333899204,1722612639483,-25255.00000004,0.00011,2]
[333899205,1722612639521,-322.5499999,0.00011,2]
[333899206,1722612639534,-1345.81638736,0.00011,2]
[333899207,1722612639545,-27092.45013426,0.00011,2]
[333899208,1722612639557,-1260.99592668,0.00011,2]
[333899209,1722612639570,-464.27999997,0.00011,2]
[333899210,1722612639581,-419.26085373,0.00011,2]
[333899211,1722612639593,-250.0058947,0.00011,2]
[333899212,1722612639605,-1225.5999999,0.00011,2]
[333899213,1722612639616,-415.16176384,0.00011,2]
[333899214,1722612639628,-840.21182738,0.00011,2]
[333899215,1722612639641,-540.65357155,0.00011,2]
[333899216,1722612639653,-73208.18186309,0.00011,2]
[333899217,1722612639665,-18963.915,0.00011,2]
[333899218,1722612639676,-762.69359376,0.00011,2]
[333899258,1722612640442,-2319.29600018,0.00011,2]
[333899259,1722612640454,-31450.98997449,0.00011,2]
[333899260,1722612640466,-1963.25914205,0.00011,2]
[333899261,1722612640477,-1025.86124944,0.00011,2]
[333899262,1722612640489,-480.53650619,0.00011,2]
[333899263,1722612640500,-579.25619831,0.00011,2]
[333899264,1722612640511,-12585.38798175,0.00011,2]
[333899265,1722612640549,-1426.77587694,0.00011,2]
[333899266,1722612640560,-62965.101594,0.00011,2]
[333899267,1722612640607,-261.34013358,0.00011,2]
[333899268,1722612640619,-301.64208,0.00011,2]
[333899269,1722612640633,-515037.29709625,0.00011,2]
[333899270,1722612640644,-10261.14983819,0.00011,2]
[333899271,1722612640656,-65781.37620166,0.00011,2]
[333899272,1722612640668,-8327.31148347,0.00011,2]
[333899273,1722612640679,-346.25,0.00011,2]
[333899274,1722612640697,-347.876038,0.00011,2]
[333899275,1722612640709,-646.602,0.00011,2]
[333899276,1722612640720,-3012.3,0.00011,2]
[333899277,1722612640734,-819.45729106,0.00011,2]
[333899278,1722612640775,-1783.2225539,0.00011,2]
[333899279,1722612640786,-810.43239475,0.00011,2]
[333899280,1722612640798,-566.18888113,0.00011,2]
[333899281,1722612640810,-2197.985,0.00011,2]
[333899282,1722612640821,-6301.9788,0.00011,2]
[333899283,1722612640833,-15962.879846,0.00011,2]
[333899296,1722612640964,-362.07932459,0.00011,2]
[333899298,1722612640976,-293.04699676,0.00011,2]
[333899300,1722612641000,-5873.89872731,0.00011,2]
[333899302,1722612641013,-47439.3855477,0.00011,2]
[333899304,1722612641025,-1540.65220127,0.00011,2]
[333899306,1722612641036,-3569.6177846,0.00011,2]
[333899310,1722612641061,-5497.23532621,0.00011,2]
[333899312,1722612641073,-3007.40000001,0.00011,2]
[333899314,1722612641084,-2259.57100005,0.00011,2]
[333899317,1722612641096,-18518.3974447,0.00011,2]
[333899319,1722612641107,-10066.1744346,0.00011,2]
[333899531,1722612643295,-2051.96602235,0.00011,2]
[333899549,1722612643431,-20439.95268357,0.00011,2]
[333899551,1722612643443,-35202.95474457,0.00011,2]
[333899553,1722612643455,-6461.38165997,0.00011,2]
[333899555,1722612643466,-6855.90067227,0.00011,2]
[333899557,1722612643477,-1500.0,0.00011,2]
[333899560,1722612643488,-2325.0,0.00011,2]
[333899563,1722612643511,-4112.61326764,0.00011,2]
[333899565,1722612643522,-105105.0,0.00011,2]
[333899567,1722612643533,-3663.62048475,0.00011,2]
[333899569,1722612643544,-228487.95895451,0.00011,2]
[333899572,1722612643555,-651.33802245,0.00011,2]
[333899574,1722612643567,-1670.0339732,0.00011,2]
[333899576,1722612643578,-16117.88400071,0.00011,2]
[333899580,1722612643610,-10282.98649999,0.00011,2]
[333899584,1722612643642,-114949.12561299,0.00011,2]
[333899586,1722612643654,-53005.6,0.00011,2]
[333899588,1722612643665,-704.09202264,0.00011,2]
[333899590,1722612643676,-12783.26000094,0.00011,2]
[333899592,1722612643687,-1752.67954229,0.00011,2]
[333899604,1722612643798,-4141.95048663,0.00011,2]
[333899607,1722612643811,-23802.92957847,0.00011,2]
[333899611,1722612643845,-2951.53940877,0.00011,2]
[333899613,1722612643860,-2279.72395609,0.00011,2]
[333899616,1722612643875,-1286.92156018,0.00011,2]
[333899878,1722612647794,-264.419,0.00011,2]
[333899880,1722612647806,-35354.68384835,0.00011,2]
[333899883,1722612647817,-7177.00097843,0.00011,2]
[333899884,1722612647829,-26106.0800029,0.00011,2]
[333899885,1722612647841,-1572.74702884,0.00011,2]
[333899886,1722612647869,-1501.02251226,0.00011,2]
[333899887,1722612647881,-25600.61538751,0.00011,2]
[333899888,1722612647893,-920.11067912,0.00011,2]
[333899889,1722612647905,-3320.37022012,0.00011,2]
[333899890,1722612647917,-1657.25362323,0.00011,2]
[333899891,1722612647949,-1007.49531355,0.00011,2]
[333899892,1722612647961,-31260.0,0.00011,2]
[333899893,1722612647972,-293.75856,0.00011,2]
[333899894,1722612647983,-1384.71,0.00011,2]
[333899895,1722612647997,-1644.15644672,0.00011,2]
[333899896,1722612648024,-950.81443091,0.00011,2]
[333899897,1722612648057,-3366.79020483,0.00011,2]
[333899898,1722612648069,-20537.74473871,0.00011,2]
[333899899,1722612648097,-10756.4091278,0.00011,2]
[333899900,1722612648110,-2515.657588,0.00011,2]
[333899901,1722612648122,-739.79148217,0.00011,2]
[333899902,1722612648134,-3187.19048631,0.00011,2]
[333899903,1722612648146,-1780.43176568,0.00011,2]
[333899904,1722612648158,-1500.0,0.00011,2]
[333899905,1722612648169,-2325.0,0.00011,2]
[333899906,1722612648181,-268.56569098,0.00011,2]
[333899907,1722612648193,-1568.475,0.00011,2]
[333899908,1722612648204,-748.57499999,0.00011,2]
[333899909,1722612648216,-6223.91249305,0.00011,2]
[333899910,1722612648227,-1218.62654909,0.00011,2]
[333899911,1722612648256,-2210.0,0.00011,2]
[333899912,1722612810345,200.0,0.00027,120]
[333899919,1722613205015,186.79520926,0.00027,120]
[333899920,1722613276673,307.33564267,0.00027,120]
[333899921,1722613475403,412.86326007,8.474e-05,2]
[333899922,1722613475434,1.88673993,8.474e-05,2]
[333899945,1722613831426,-3082.98056,0.00010024,2]
[333899946,1722613831437,-40.40047387,0.00010075,10]
[333899948,1722613831448,-781.95019923,0.00010075,10]
[333899949,1722613831461,-2130.44985288,0.00010075,10]
[333899950,1722613831473,-827.13712285,0.00010075,10]
[333899953,1722613831485,-64.92630125,0.00010075,10]
[333899954,1722613831495,-427.19,0.00010094,2]
[333899955,1722613831505,-181.88369875,0.00010098,2]
[333899956,1722613831516,-1501.38630125,0.00010098,2]
[333899957,1722613831526,-189.23,0.00010111,2]
[333899958,1722613831536,-1961.68,0.00010183,2]
[333899959,1722613831546,-2000.0,0.00010198,2]
[333899960,1722613831556,-334.3,0.00010267,2]
[333899961,1722613831569,-155.12399428,0.00010271,2]
[333899962,1722613831579,-203.85033958,0.00010271,2]
[333899963,1722613831590,-821.72,0.00010271,2]
[333899964,1722613831602,-1358.38497243,0.00010271,2]
[333899965,1722613831612,-14.25336013,0.00010368,2]
[333899966,1722613831623,-285.74663987,0.00010368,2]
[333899967,1722613831634,-300.0,0.00010368,2]
[333899968,1722613831643,-300.0,0.00010369,2]
[333899969,1722613831653,-2535.71138155,0.0001037,2]
[333899970,1722613831670,-341.42630098,0.0001037,2]
[333899971,1722613831693,-21022.86231747,0.0001037,2]
[333899972,1722613831703,-2249.6,0.00010385,2]
[333899973,1722613831713,-499.99,0.00010385,2]
[333899974,1722613831722,-250.0,0.00010425,2]
[333899975,1722613831732,-331.74,0.00010425,2]
[333899977,1722613831742,-1165.18,0.00010504,2]
[333899980,1722613831755,-9414.46,0.00010504,2]
[333899983,1722613831765,-150.99,0.00010712,2]
[333899986,1722613831775,-4987.05,0.00010712,2]
[333899987,1722613831785,-150.0,0.00010712,2]
[333899988,1722613831795,-414.75,0.00010738,2]
[333899989,1722613831805,-2857.68,0.00010738,2]
[333899990,1722613831818,-150.0,0.00010799,2]
[333899991,1722613831829,-13540.6762,0.000108,2]
[333899992,1722613831838,-1671.83220681,0.00010899,2]
[333899993,1722613831848,-6690.0,0.000109,2]
[333899994,1722613831858,-2080.2335,0.000109,2]
[333899995,1722613831868,-224.9761,0.000109,2]
[333899996,1722613831878,-491.985,0.000109,2]
[333899997,1722613831889,-3543.8731,0.000109,2]
[333899998,1722613831900,-230.0229,0.000109,2]
[333899999,1722613831912,-3713.06592283,0.000109,2]
[333900000,1722613831924,-161.50266836,0.000109,2]
[333900001,1722613831935,-250.0,0.00010959,2]
[333900002,1722613831947,-150.0,0.00010959,2]
[333900003,1722613831958,-152.27,0.0001099,2]
[333900004,1722613831970,-375685.39360047,0.00011,2]
[333900005,1722613831983,-600.0,0.00011,2]
[333900006,1722613831994,-941.26867698,0.00011,2]
[333900007,1722613832113,-43156.12917507,0.00011,2]
[333900008,1722613832125,-20635.98578396,0.00011,2]
[333900009,1722613832164,-315.04,0.00011,2]
[333900010,1722613832175,-418.90217464,0.00011,2]
[333900013,1722613837397,-175.8364,0.000109,2]
[333900014,1722613837406,-1332.75592465,0.00011,2]
[333900015,1722613837420,-1202.39730484,0.00011,2]
[333900016,1722613837431,-40491.41836104,0.00011,2]
[333900017,1722613837443,-3643.60526787,0.00011,2]
[333900020,1722613839186,-5445.27923431,0.00011,2]
[333900021,1722613839198,-9522.62605882,0.00011,2]
[333900022,1722613839210,-1876.43931272,0.00011,2]
[333900023,1722613839222,-531.79482725,0.00011,2]
[333900024,1722613839250,-57724.2594387,0.00011,2]
[333900025,1722613839260,-410.41803763,0.00011,2]
[333900026,1722613839271,-148571.91308803,0.00011,2]
[333900027,1722613839281,-636.88048517,0.00011,2]
[333900028,1722613839290,-5661.333,0.00011,2]
[333900029,1722613839299,-648.45989,0.00011,2]
[333900030,1722613839309,-3502.24,0.00011216,2]
[333900031,1722613839321,-192.51,0.00011257,2]
[333900032,1722613839331,-185.6,0.0001126,2]
[333900033,1722613839340,-420.0,0.00011401,2]
[333900034,1722613839350,-321.39,0.00011831,2]
[333900035,1722613839360,-321.39,0.00011834,2]
[333900037,1722613839370,-255.0,0.00011836,2]
[333900039,1722613839379,-321.39,0.00011838,2]
[333900040,1722613839389,-321.39,0.00011841,2]
[333900041,1722613839399,-321.39,0.00011844,2]
[333900042,1722613839408,-321.39,0.00011847,2]
[333900043,1722613839418,-321.39,0.0001185,2]
[333900044,1722613839428,-321.39,0.00011853,2]
[333900045,1722613839438,-321.39,0.00011856,2]
[333900046,1722613839447,-321.39,0.00011859,2]
[333900047,1722613839458,-321.39,0.00011863,2]
[333900048,1722613839467,-321.39,0.00011866,2]
[333900049,1722613839477,-321.39,0.00011869,2]
[333900050,1722613839487,-321.39,0.00011872,2]
[333900051,1722613839497,-321.39,0.00011875,2]
[333900052,1722613839507,-321.39,0.00011878,2]
[333900053,1722613839517,-321.39,0.00011881,2]
[333900054,1722613839527,-321.39,0.00011884,2]
[333900055,1722613839537,-321.39,0.00011888,2]
[333900056,1722613839547,-321.39,0.00011891,2]
[333900057,1722613839558,-3713.06592281,0.000119,2]
[333900058,1722613839570,-550.0,0.00012,2]
[333900059,1722613839580,-1000.0,0.00012488,2]
[333900060,1722613839589,-587.0,0.00012536,2]
[333900061,1722613839599,-3713.06592281,0.000129,2]
[333900062,1722613839609,-414.75,0.00013002,2]
[333900063,1722613839618,-181.6,0.00013238,2]
[333900064,1722613839628,-3494.71,0.00013699,2]
[333900065,1722613839638,-823.0,0.00013784,2]
[333900066,1722613839648,-164.49385076,0.000138,2]
[333900067,1722613839658,-165111.77053,0.000138,2]
[333900068,1722613839668,-8730.45336892,0.00013889,2]
[333900069,1722613839677,-2884.39556048,0.000139,2]
[333900070,1722613839687,-3713.06592281,0.000139,2]
[333900071,1722613839696,-580.57,0.00013973,2]
[333900072,1722613839706,-150.41,0.00013973,2]
[333900073,1722613839716,-163.53,0.00013973,2]
[333900074,1722613839725,-600.0,0.00014,2]
[333900075,1722613839735,-1000.0,0.00014049,2]
[333900076,1722613839745,-185.6,0.00014075,2]
[333900077,1722613839755,-334.3,0.00014374,2]
[333900078,1722613839767,-4102.39165468,0.00014451,2]
[333900079,1722613839777,-780.764578,0.00014521,2]
[333900080,1722613839786,-360.54944506,0.0001489,2]
[333900081,1722613839796,-3713.06592281,0.000149,2]
[333900082,1722613839807,-155.04148385,0.00014999,2]
[333900083,1722613839820,-1000.0,0.00015,2]
[333900084,1722613839835,-1000.0,0.00015018,2]
[333900085,1722613839844,-1000.0,0.00015101,2]
[333900086,1722613839854,-1152.0,0.00015157,2]
[333900087,1722613839864,-414.75,0.00015266,2]
[333900088,1722613839873,-780.764578,0.00015342,2]
[333900089,1722613839883,-181.6,0.00015444,2]
[333900090,1722613839893,-1000.0,0.00015505,2]
[333900091,1722613839902,-1000.0,0.00015609,2]
[333900092,1722613839912,-1471.41214778,0.00015863,2]
[333900093,1722613839922,-404.7199998,0.00015863,2]
[333900094,1722613839931,-360.54944506,0.0001589,2]
[333900095,1722613839941,-3713.06592281,0.000159,2]
[333900096,1722613839950,-4380.04183939,0.00015906,2]
[333900097,1722613839960,-1925.0,0.00015916,2]
[333900098,1722613839970,-621.0,0.00015916,2]
[333900100,1722613839980,-1575.612,0.00015916,2]
[333900102,1722613839989,-451.0,0.00015916,2]
[333900104,1722613839999,-337.463,0.00015916,2]
[333900106,1722613840008,-982.699,0.00015916,2]
[333900108,1722613840017,-1629.181,0.00015916,2]
[333900110,1722613840026,-1370.0,0.00015916,2]
[333900112,1722613840036,-150.0,0.00015916,2]
[333900114,1722613840045,-157.364,0.00015916,2]
[333900115,1722613840054,-153.0,0.00015916,2]
[333900117,1722613840063,-317.561,0.00015916,2]
[333900119,1722613840075,-21732.0,0.00015916,2]
[333900121,1722613840084,-150.0,0.00015916,2]
[333900124,1722613840094,-150.083,0.00015916,2]
[333900126,1722613840103,-2376.325,0.00015916,2]
[333900128,1722613840113,-1670.0,0.00015916,2]
[333900130,1722613840123,-150.0,0.00015916,2]
[333900132,1722613840133,-162.737,0.00015916,2]
[333900134,1722613840143,-150.0,0.00015916,2]
[333900136,1722613840153,-648.45989,0.00016,2]
[333900138,1722613840164,-198.36250161,0.00016159,2]
[333900140,1722613840174,-780.764578,0.00016164,2]
[333900142,1722613840184,-2500.4353,0.00016232,2]
[333900144,1722613840193,-1181.0,0.00016293,2]
[333900146,1722613840203,-1164.75679437,0.00016358,2]
[333900148,1722613840212,-179.2,0.00016535,2]
[333900150,1722613840222,-1613.0,0.00016667,2]
[333900152,1722613840231,-205.30028547,0.00016799,2]
[333900154,1722613840241,-185.6,0.0001689,2]
[333900156,1722613840251,-3713.06592281,0.000169,2]
[333900158,1722613840260,-879.18232975,0.00016949,40]
[333900160,1722613840270,-155.03898361,0.00016953,2]
[333900161,1722613840280,-155.0,0.00016953,2]
[333900163,1722613840289,-780.764578,0.00016986,2]
[333900165,1722613840299,-519.62430261,0.00016999,2]
[333900167,1722613840309,-2991.0,0.000171,2]
[333900169,1722613840320,-1000.0,0.0001717,2]
[333900171,1722613840330,-1000.0,0.00017208,2]
[333900173,1722613840339,-167.0,0.00017274,2]
[333900175,1722613840348,-211.48322793,0.0001738,2]
[333900177,1722613840358,-211.48322793,0.0001738,2]
[333900179,1722613840367,-155.01924562,0.0001738,2]
[333900181,1722613840377,-414.75,0.0001753,2]
[333900183,1722613840386,-254.95149509,0.00017608,2]
[333900185,1722613840396,-181.6,0.00017651,2]
[333900187,1722613840405,-780.764578,0.00017808,2]
[333900189,1722613840415,-458.52311798,0.00017879,2]
[333900191,1722613840427,-138027.84989649,0.0001788,2]
[333900193,1722613840440,-652.16989619,0.0001788,2]
[333900196,1722613840453,-4502.25422315,0.0001788,2]
[333900198,1722613840465,-1151.22262471,0.0001788,2]
[333900200,1722613840476,-2425.88576,0.0001788,2]
[333900202,1722613840487,-332.82000003,0.0001788,2]
[333900204,1722613840499,-5873.22356511,0.0001788,2]
[333900206,1722613840509,-383.70002696,0.0001788,2]
[333900208,1722613840521,-457.01406701,0.0001788,2]
[333900210,1722613840532,-34246.0,0.0001788,2]
[333900253,1722613840951,-1075.0,0.00015916,2]
[333900255,1722613840960,-208.9577871,0.0001788,2]
[333900262,1722613841024,-12877.58836441,0.0001788,2]
[333900268,1722613841075,-676.47483956,0.0001788,2]
[333900271,1722613841088,-1368.90491416,0.0001788,2]
[333900273,1722613841118,-21922.23458186,0.0001788,2]
[333900274,1722613841129,-715.29810929,0.0001788,2]
[333900275,1722613841140,-2020.20084948,0.0001788,2]
[333900276,1722613841152,-2354.3720067,0.0001788,2]
[333900277,1722613841167,-522.77982189,0.0001788,2]
[333900278,1722613841188,-243.00643023,0.00012581,2]
[333900279,1722613841198,-74.32122835,0.0001788,2]
[333900281,1722613841209,-1043.21965598,0.0001788,2]
[333900456,1722613842739,-270.84000006,0.00010997,2]
[333900458,1722613842750,-3682.97927449,0.0001788,2]
[333900460,1722613842762,-1636.1167338,0.0001788,2]
[333900462,1722613842775,-1039.9999,0.0001788,2]
[333900464,1722613842786,-5453.45619711,0.0001788,2]
[333900468,1722613842810,-228487.95895451,0.0001788,2]
[333900469,1722613842855,-123383.13313515,0.0001788,2]
[333900470,1722613842865,-151.0,0.0001788,2]
[333900471,1722613842875,-151.0,0.0001788,2]
[333900472,1722613842885,-151.0,0.0001788,2]
[333900473,1722613842894,-151.0,0.0001788,2]
[333900474,1722613842905,-151.0,0.0001788,2]
[333900475,1722613842914,-151.0,0.0001788,2]
[333900476,1722613842925,-151.0,0.0001788,2]
[333900477,1722613842935,-151.0,0.0001788,2]
[333900478,1722613842945,-151.0,0.0001788,2]
[333900479,1722613842955,-151.0,0.0001788,2]
[333900480,1722613842964,-151.0,0.0001788,2]
[333900481,1722613842974,-151.0,0.0001788,2]
[333900482,1722613842983,-151.0,0.0001788,2]
[333900483,1722613842993,-230.731831,0.0001788,2]
[333900484,1722613843002,-151.0,0.0001788,2]
[333900485,1722613843011,-230.731831,0.0001788,2]
[333900486,1722613843021,-272.449273,0.0001788,2]
[333900487,1722613843030,-272.449273,0.0001788,2]
[333900488,1722613843040,-294.980922,0.0001788,2]
[333900489,1722613843050,-151.0,0.0001788,2]
[333900490,1722613843059,-151.0,0.0001788,2]
[333900491,1722613843073,-578.381086,0.0001788,2]
[333900492,1722613843084,-578.381086,0.0001788,2]
[333900493,1722613843093,-151.0,0.0001788,2]
[333900494,1722613843103,-151.0,0.0001788,2]
[333900495,1722613843112,-151.0,0.0001788,2]
[333900496,1722613843122,-151.0,0.0001788,2]
[333900497,1722613843132,-151.0,0.0001788,2]
[333900498,1722613843141,-151.0,0.0001788,2]
[333900499,1722613843151,-285.867123,0.0001788,2]
[333900500,1722613843161,-285.867123,0.0001788,2]
[333900501,1722613843171,-151.0,0.0001788,2]
[333900502,1722613843180,-3713.06592281,0.000179,2]
[333900503,1722613843190,-502.85867581,0.00018,2]
[333900505,1722613843200,-371.71125404,0.00018,2]
[333900507,1722613843210,-227.50000335,0.00018,2]
[333900509,1722613843219,-649.20351135,0.00018529,2]
[333900510,1722613843229,-222.9761057,0.0001853,2]
[333900511,1722613843239,-172.1303994,0.0001853,2]
[333900512,1722613843248,-3458.7345,0.0001853,2]
[333900513,1722613843259,-19686.91171391,0.00018599,2]
[333900514,1722613843268,-179.2,0.00018602,2]
[333900515,1722613843277,-167.0,0.00018612,2]
[333900516,1722613843287,-150.0,0.00018629,2]
[333900517,1722613843296,-500.0,0.0001863,2]
[333900518,1722613843306,-500.0,0.0001863,2]
[333900519,1722613843316,-500.0,0.0001863,2]
[333900520,1722613843331,-500.0,0.0001863,2]
[333900521,1722613843340,-500.0,0.0001863,2]
[333900522,1722613843349,-500.0,0.0001863,2]
[333900523,1722613843359,-500.0,0.0001863,2]
[333900524,1722613843368,-151.0,0.0001863,2]
[333900525,1722613843378,-151.0,0.0001863,2]
[333900526,1722613843388,-500.0,0.0001863,2]
[333900527,1722613843398,-188.98510004,0.0001863,2]
[333900528,1722613843408,-567.5906387,0.0001863,2]
[333900529,1722613843418,-500.0,0.0001863,2]
[333900530,1722613843427,-500.0,0.0001863,2]
[333900531,1722613843438,-500.0,0.0001863,2]
[333900532,1722613843449,-500.0,0.0001863,2]
[333900533,1722613843459,-500.0,0.0001863,2]
[333900534,1722613843468,-500.0,0.0001863,2]
[333900535,1722613843477,-2783.68,0.0001863,2]
[333900536,1722613843487,-500.0,0.0001863,2]
[333900537,1722613843497,-151.0,0.0001863,2]
[333900538,1722613843507,-151.0,0.0001863,2]
[333900539,1722613843516,-151.0,0.0001863,2]
[333900540,1722613843526,-457.39225811,0.0001863,2]
[333900541,1722613843535,-500.0,0.0001863,2]
[333900542,1722613843544,-500.0,0.0001863,2]
[333900543,1722613843554,-500.0,0.0001863,2]
[333900544,1722613843563,-608.55,0.0001863,2]
[333900545,1722613843580,-500.0,0.0001863,2]
[333900546,1722613843593,-500.0,0.0001863,2]
[333900547,1722613843602,-1547.13,0.0001863,2]
[333900548,1722613843612,-500.0,0.0001863,2]
[333900549,1722613843621,-500.0,0.0001863,2]
[333900550,1722613843631,-2283.54,0.0001863,2]
[333900551,1722613843640,-500.0,0.0001863,2]
[333900552,1722613843650,-1622.33,0.0001863,2]
[333900553,1722613843659,-500.0,0.0001863,2]
[333900554,1722613843668,-500.0,0.0001863,2]
[333900555,1722613843678,-500.0,0.0001863,2]
[333900556,1722613843687,-500.0,0.0001863,2]
[333900557,1722613843696,-500.0,0.0001863,2]
[333900558,1722613843706,-1002.47,0.0001863,2]
[333900559,1722613843715,-500.0,0.0001863,2]
[333900560,1722613843725,-500.0,0.0001863,2]
[333900561,1722613843735,-260.53360245,0.0001863,2]
[333900562,1722613843746,-500.0,0.0001863,2]
[333900563,1722613843759,-500.0,0.0001863,2]
[333900564,1722613843770,-500.0,0.0001863,2]
[333900565,1722613843779,-500.0,0.0001863,2]
[333900566,1722613843788,-719.67,0.0001863,2]
[333900567,1722613843799,-500.0,0.0001863,2]
[333900568,1722613843809,-151.0,0.0001863,2]
[333900569,1722613843821,-151.0,0.0001863,2]
[333900570,1722613843831,-1280.92,0.0001863,2]
[333900571,1722613843843,-500.0,0.0001863,2]
[333900572,1722613843853,-500.0,0.0001863,2]
[333900573,1722613843862,-1172.91,0.0001863,2]
[333900574,1722613843871,-500.0,0.0001863,2]
[333900575,1722613843881,-500.0,0.0001863,2]
[333900576,1722613843890,-500.0,0.0001863,2]
[333900577,1722613843899,-500.0,0.0001863,2]
[333900578,1722613843909,-500.0,0.0001863,2]
[333900579,1722613843920,-151.0,0.0001863,2]
[333900580,1722613843931,-151.0,0.0001863,2]
[333900581,1722613843941,-500.0,0.0001863,2]
[333900582,1722613843952,-586.54,0.0001863,2]
[333900583,1722613843962,-605.82,0.0001863,2]
[333900584,1722613843972,-500.0,0.0001863,2]
[333900585,1722613843981,-500.0,0.0001863,2]
[333900586,1722613843991,-1454.42,0.0001863,2]
[333900587,1722613844001,-500.0,0.0001863,2]
[333900588,1722613844010,-500.0,0.0001863,2]
[333900589,1722613844020,-1176.36,0.0001863,2]
[333900590,1722613844030,-622.67,0.0001863,2]
[333900591,1722613844040,-151.0,0.0001863,2]
[333900592,1722613844050,-151.0,0.0001863,2]
[333900593,1722613844059,-151.0,0.0001863,2]
[333900594,1722613844072,-500.0,0.0001863,2]
[333900595,1722613844082,-775.8,0.0001863,2]
[333900596,1722613844092,-505.63973572,0.0001863,2]
[333900597,1722613844101,-500.0,0.0001863,2]
[333900598,1722613844111,-857.25,0.0001863,2]
[333900599,1722613844120,-875.9,0.0001863,2]
[333900600,1722613844130,-300.0,0.0001863,2]
[333900601,1722613844139,-500.0,0.0001863,2]
[333900602,1722613844152,-500.0,0.0001863,2]
[333900603,1722613844162,-802.09,0.0001863,2]
[333900604,1722613844171,-500.0,0.0001863,2]
[333900605,1722613844181,-500.0,0.0001863,2]
[333900606,1722613844191,-981.0,0.0001863,2]
[333900607,1722613844201,-500.0,0.0001863,2]
[333900608,1722613844211,-598.2,0.0001863,2]
[333900609,1722613844221,-950.53,0.0001863,2]
[333900610,1722613844231,-500.0,0.0001863,2]
[333900611,1722613844240,-500.0,0.0001863,2]
[333900612,1722613844249,-1338.68,0.0001863,2]
[333900613,1722613844259,-500.0,0.0001863,2]
[333900614,1722613844268,-1305.23,0.0001863,2]
[333900615,1722613844278,-521.29,0.0001863,2]
[333900616,1722613844287,-1970.95,0.0001863,2]
[333900617,1722613844297,-1230.49,0.0001863,2]
[333900618,1722613844307,-500.0,0.0001863,2]
[333900619,1722613844320,-716.54,0.0001863,2]
[333900620,1722613844329,-500.0,0.0001863,2]
[333900621,1722613844339,-500.0,0.0001863,2]
[333900622,1722613844349,-500.0,0.0001863,2]
[333900623,1722613844358,-293.7,0.0001863,2]
[333900624,1722613844368,-259.258395,0.0001863,2]